Cogmind - Beta 17 @@@ ROGUE MODE // 2026.08.15 @ 07:29:41 Player: MrFartsburg Result: Destroyed by G-47 Trooper with Particle Gun Performance ------------- Evolutions (2) 1000 Regions Visited (3) 600 Robots Destroyed (37) 185 Value Destroyed (1135) 1135 Prototype IDs (0) 0 Alien Tech Used (0) 0 Bonus (0) 0 TOTAL SCORE: 2920 Bonus ------- None Cogmind --------- Core Integrity 0/550 Matter 300/300 Energy 99/100 System Corruption 0% Temperature Cool (18) Movement Core (350) Ox6 Location -8/Materials Parts ------- > --- POWER (2) -------- (None) > --- PROPULSION (4) --- (None) > --- UTILITY (3) ------ Large Storage Unit > --- WEAPON (2) ------- (None) > --- INVENTORY (15) --- Improved Ion Engine Structural Scanner Improved Utility Shielding Medium Laser Light Assault Rifle Peak State ------------ > --- POWER ------------ Improved Ion Engine Light Nuclear Core > --- PROPULSION ------- Light Treads Light Treads Armored Treads > --- UTILITY ---------- Compact Battery Hardened Medium Armor Plating Hardlight Generator > --- WEAPON ----------- Beam Rifle Heavy Particle Cannon > --- INVENTORY -------- Improved Ion Engine Structural Scanner Improved Utility Shielding Medium Laser Light Assault Rifle [Rating: 24] Favorites ----------- Power Improved Ion Engine Engine Improved Ion Engine Power Core Light Nuclear Core Propulsion Aluminum Leg Treads Light Treads Leg Aluminum Leg Wheel Wheel Utility Large Storage Unit Device Hardlight Generator Storage Large Storage Unit Processor Targeting Computer Protection Insulated Plating Weapon Beam Rifle Energy Gun Beam Rifle Energy Cannon Heavy Particle Cannon Ballistic Gun Light Assault Rifle Ballistic Cannon Light Cannon Launcher Grenade Launcher Build | -11 -10 -9 -8 ------- Run | Yrd Mat Mat Mat Slots Evolved 4 | . . 2 2 Power 1 | . . 1 . Propulsion 2 | . . 1 1 Utility 1 | . . . 1 Weapon . | . . . . Parts Attached 37 | 5 8 17 7 Power 5 | 1 1 3 . Engine 4 | 1 1 2 . Core 1 | . . 1 . Reactor . | . . . . Propulsion 11 | 2 2 6 1 Treads 3 | . . 2 1 Leg 6 | . 2 4 . Wheel 2 | 2 . . . Hover . | . . . . Flight . | . . . . Utility 9 | . 2 3 4 Device 2 | . . 1 1 Storage 3 | . 1 . 2 Processor 1 | . 1 . . Hackware . | . . . . Protection 3 | . . 2 1 Artifact . | . . . . Weapon 12 | 2 3 5 2 Energy Gun 5 | 1 . 3 1 Energy Cannon 1 | . . . 1 Ballistic Gun 3 | 1 1 1 . Ballistic Cannon 2 | . 1 1 . Launcher 1 | . 1 . . Special Weapon . | . . . . Impact Weapon . | . . . . Slashing Weapon . | . . . . Piercing Weapon . | . . . . Special Melee Weapon . | . . . . Unidentified Prototypes . | . . . . Parts Lost 25 | . 3 12 10 Power 4 | . . 2 2 Propulsion 9 | . 1 5 3 Utility 5 | . 1 1 3 Weapon 7 | . 1 4 2 Highest Loss Streak 10 | . 1 5 10 To Critical Strikes . | . . . . Average Backups 3 | . 3 3 4 Power . | . . . 1 Propulsion . | . . . . Utility . | . . . 2 Weapon 2 | . 3 2 1 Tool/Special . | . . . . Unused Backups 1 | . . . 1 Power 1 | . . . 1 Propulsion . | . . . . Utility . | . . . . Weapon . | . . . . Tool/Special . | . . . . Average Slot Usage (%) 76 | . 76 76 74 Engine 11 | . 14 11 7 Core 3 | . . 3 7 Treads 5 | . . 2 18 Leg 12 | . 2 18 . Wheel 3 | . 23 . . Device 2 | . . 1 8 Storage 10 | . 8 11 9 Protection 5 | . . 5 8 Energy Gun 8 | . 11 7 10 Ballistic Gun 7 | . 14 7 1 Ballistic Cannon 4 | . . 7 . Peak Build Rating 24 | 5 7 14 24 Average Rating 10 | 3 5 9 18 On Entrance 6 | . 5 6 14 Avg Prop Armor Cover (%) . | . . . . Naked Turns . | . . . . Heaviest Build 54 | 7 30 41 54 Greatest Support 60 | 20 20 40 60 Greatest Overweight (x) 13 | . 2 13 8 Average Overweight (x) . | . . 1 . Largest Inventory Capacity 15 | 5 15 15 15 Average Capacity 12 | 5 11 15 7 Most Carried 6 | 2 5 4 6 Average Carried 3 | . 3 3 5 Final Capacity 15 | 5 15 15 15 Final Carried 5 | 2 4 4 5 Class Distribution -------------------- 59% | Scavenger-Mutant 40% | Mutant Dominant Class ---------------- Mutant | -10/Materials Scavenger-Mutant | -9/Materials Scavenger-Mutant | -8/Materials Resources | -11 -10 -9 -8 ----------- Run | Yrd Mat Mat Mat Matter Collected 922 | 231 72 564 55 Remotely . | . . . . Salvage Created 1164 | . 292 765 107 Parts 83 | . 24 48 11 Haulers Intercepted . | . . . . Recyclers Shooed 1 | . . 1 . Parts Field Recycled . | . . . . Retrieved Matter . | . . . . Parts Self-Destructed . | . . . . Prevented . | . . . . Parts Restored . | . . . . Kills | -11 -10 -9 -8 ------- Run | Yrd Mat Mat Mat Combat Hostiles Destroyed 32 | . 10 21 1 Guns 11 | . 3 7 1 Cannons 14 | . . 14 . AOE 7 | . 7 . . Classes Destroyed 5 | . 3 2 . Builder 3 | . 1 1 1 Watcher 2 | . . 1 1 Swarmer 5 | . 2 3 . Grunt 22 | . 8 14 . Sentry 5 | . . 4 1 Best Kill Streak 9 | . 9 5 2 Combat Bots Only 8 | . 8 4 1 Max Kills in Single Turn 3 | . 3 1 1 Gunslinging . | . . . . Exploded 3 | . 3 . . Melee . | . . . . Uniques/NPCs Destroyed . | . . . . Combat | -11 -10 -9 -8 -------- Run | Yrd Mat Mat Mat Hostile Shots Fired 372 | . 73 157 142 Missed 110 | . 29 45 36 Hits 262 | . 44 112 106 Projectile 262 | . 44 112 106 Critical Strikes 10 | . . 5 5 Part Disruptions 1 | . 1 . . Damage Taken 3865 | . 532 1537 1796 Core 993 | . 83 356 554 Absorbed by Shields 160 | . . . 160 Redirected to Shielding 7 | . . 7 . Core Remaining (%) 59 | 100 66 11 . Volleys Fired 96 | . 24 63 9 Largest 2 | . 2 2 2 Hottest 131 | . 60 86 131 Shots Fired 181 | . 44 120 17 Gun 125 | . 41 76 8 Cannon 53 | . . 44 9 Launcher 3 | . 3 . . Special . | . . . . Kinetic 115 | . 21 94 . Thermal 43 | . . 26 17 Explosive 3 | . 3 . . Electromagnetic 20 | . 20 . . Robot Hit Streak 11 | . 6 11 4 Robot Miss Streak 5 | . 5 4 2 Penetration Max . | . . . . Secondary Targets . | . . . . Shots Hit Robots 107 | . 21 77 9 Core Hits 58 | . 15 39 4 Critical Kills . | . . . . Critical Parts Destroyed . | . . . . Critical Strikes 1 | . . 1 . Burn 1 | . . 1 . Melee Attacks . | . . . . Impact . | . . . . Slashing . | . . . . Piercing . | . . . . Sneak Attacks . | . . . . Combat Hostiles . | . . . . Follow-up Attacks . | . . . . Damage Inflicted 1914 | . 677 1037 200 Guns 770 | . 275 420 75 Cannons 719 | . . 594 125 Explosions 378 | . 378 . . Melee . | . . . . Ramming 47 | . 24 23 . Kinetic 937 | . 124 813 . Thermal 472 | . 71 201 200 Explosive 307 | . 307 . . Electromagnetic 151 | . 151 . . Impact . | . . . . Slashing . | . . . . Piercing . | . . . . Highest Corruption . | . . . . Average Corruption . | . . . . Corruption Purged . | . . . . Corruption Blocked . | . . . . Overload Shots . | . . . . Overflow Damage 10 | . 10 . . Projectiles . | . . . . Explosions 10 | . 10 . . Melee . | . . . . Knockbacks 5 | . . 5 . Impact . | . . . . Kinetic 5 | . . 5 . Secondary . | . . . . Self-Inflicted Damage 103 | . 103 . . Shots 3 | . 3 . . Rammed 3 | . 3 . . Targets Rammed 10 | . 3 7 . Kicked 7 | . . 7 . Crushed . | . . . . Highest Temperature 560 | . 36 560 405 Average Temperature 117 | . 20 125 150 Received Heat Transfer 1436 | . 156 684 596 Effects 14 | . . 14 . Shutdowns 5 | . . 5 . Energy Bleed 3 | . . 3 . Interference 2 | . . 2 . Matter Decay 2 | . . 2 . Short Circuit 1 | . . 1 . Damage (core) 1 | . . 1 . Siege Activations . | . . . . Martial Activations . | . . . . Shielding Activations . | . . . . Robots Disrupted . | . . . . Combat Hostiles . | . . . . Robots Corrupted . | . . . . Combat Hostiles . | . . . . Parts Fried . | . . . . Impact Corruptions . | . . . . Robots Melted . | . . . . Combat Hostiles . | . . . . Parts Melted 1 | . . 1 . Heat Transferred 1012 | . 50 592 370 Parts Sabotaged . | . . . . Parts Stolen . | . . . . Parts Stripped . | . . . . Power Chain Reactions 2 | . 2 . . Alert | -11 -10 -9 -8 ------- Run | Yrd Mat Mat Mat Maximum Alert Level 1 | . 1 1 . Low Security (%) 85 | 100 83 81 100 Level 1 14 | . 16 18 . Level 2 . | . . . . Level 3 . | . . . . Level 4 . | . . . . Level 5 . | . . . . High Security . | . . . . Max Security . | . . . . Peak Influence 263 | . 263 235 57 Initial 98 | . . 98 57 Average 117 | . 56 168 13 Influence Increases 944 | . 325 574 45 Destroy 0b10 Robot/C 640 | . 200 420 20 Destroy 0b10 Robot/NC 25 | . 5 10 10 Destroy Leader 164 | . 40 112 12 Successful Hack 8 | . 7 1 . Disable Machine 45 | . 45 . . Destroy Structure 17 | . 13 1 3 Lose Combat Pursuer 45 | . 15 30 . Influence Decreases 944 | . 92 671 181 Entered New Map 214 | . . 135 79 Time Decay 568 | . 72 416 80 Lost Part 162 | . 20 120 22 Squads Dispatched 9 | . 3 5 1 Investigation 5 | . 2 3 . Extermination . | . . . . Reinforcement 4 | . 1 2 1 Assault . | . . . . Garrison . | . . . . Intercept . | . . . . Searches Triggered . | . . . . Construction Impeded 1 | . . 1 . Haulers Reinforced . | . . . . Active Scanning Responses . | . . . . Cargo Convoy Interrupts . | . . . . Stealth | -11 -10 -9 -8 --------- Run | Yrd Mat Mat Mat Distress Signals 5 | . 2 3 . Communications Jammed . | . . . . Distress Signals . | . . . . Times Spotted 63 | . 19 30 14 Peak Tracking Total 10 | . 8 4 10 Tactical Retreats 2 | . 1 1 . Traps | -11 -10 -9 -8 ------- Run | Yrd Mat Mat Mat Traps Triggered 1 | . . 1 . Indirectly . | . . . . Trap Hack Attempts . | . . . . Triggered . | . . . . Disarmed 6 | . 6 . . Reprogrammed . | . . . . Reused . | . . . . Traps Extracted . | . . . . Installed . | . . . . Triggered . | . . . . Machines | -11 -10 -9 -8 ---------- Run | Yrd Mat Mat Mat Machines Disabled 3 | . 3 . . Max in Single Turn 2 | . 2 . . Machines Repaired . | . . . . Machines Dismantled . | . . . . Machines Sabotaged . | . . . . Overloaded Fab Kills . | . . . . Hacking | -11 -10 -9 -8 --------- Run | Yrd Mat Mat Mat Machines Accessed 7 | . 2 5 . Terminals 4 | . 2 2 . Fabricators . | . . . . Repair Stations . | . . . . Recycling Units 2 | . . 2 . Scanalyzers 1 | . . 1 . Garrison Access . | . . . . Total Hacks 28 | . 11 17 . Successful 18 | . 6 12 . Failed 10 | . 5 5 . Catastrophic 3 | . 3 . . Database Lockouts . | . . . . Manual . | . . . . Terminals 18 | . 11 7 . Fabricators . | . . . . Repair Stations . | . . . . Recycling Units 5 | . . 5 . Scanalyzers 5 | . . 5 . Garrison Access . | . . . . Terminal Hacks 11 | . 6 5 . Record 7 | . 3 4 . Alert Level 1 | . . 1 . Locate Traps 1 | . 1 . . Disarm Traps 2 | . 2 . . Fabricator Hacks . | . . . . Repair Station Hacks . | . . . . Recycling Unit Hacks 3 | . . 3 . Recycle Component 2 | . . 2 . Process 1 | . . 1 . Scanalyzer 4 | . . 4 . Insert Component 1 | . . 1 . Analyze 1 | . . 1 . Retrieve Study 2 | . . 2 . Garrison Access Hacks . | . . . . Unauthorized Hacks . | . . . . Terminals . | . . . . Fabricators . | . . . . Repair Stations . | . . . . Recycling Units . | . . . . Scanalyzers . | . . . . Garrison Access . | . . . . Data Cores Recovered . | . . . . Used . | . . . . Hacking Detections 6 | . 2 4 . Full Trace Events 6 | . 2 4 . Feedback Events . | . . . . Feedback Blocked . | . . . . Robot Schematics Acquired . | . . . . Robots Built . | . . . . Authchips . | . . . . Time . | . . . . Total Robot Build Rating . | . . . . Part Schematics Acquired 1 | . . 1 . Parts Built . | . . . . Authchips . | . . . . Time . | . . . . Total Part Build Rating . | . . . . Part Studies Acquired 2 | . . 2 . Parts Repaired . | . . . . Time . | . . . . Parts Recycled 2 | . . 2 . Recycled Matter 240 | . . 240 . Retrieved Matter . | . . . . Retrieved Components . | . . . . Parts Scanalyzed 1 | . . 1 . Part Schematics Acquired 1 | . . 1 . Parts Damaged . | . . . . Bothacking | -11 -10 -9 -8 ------------ Run | Yrd Mat Mat Mat Used RIF Installer . | . . . . Robots Hacked . | . . . . Non-combat . | . . . . Combat . | . . . . Robot Hacks Applied . | . . . . Relay Couplers Released . | . . . . Fabnet Peak Effective % . | . . . . Robots Rewired . | . . . . Allies Hacked . | . . . . Hacks Repelled . | . . . . Allies | -11 -10 -9 -8 -------- Run | Yrd Mat Mat Mat Total Allies . | . . . . Largest Group . | . . . . Highest-Rated Group . | . . . . Highest-Rated Ally . | . . . . Total Orders . | . . . . Ally Attacks . | . . . . Total Damage . | . . . . Kills . | . . . . Allies Corrupted . | . . . . Allies Melted . | . . . . Intel | -11 -10 -9 -8 ------- Run | Yrd Mat Mat Mat Active Infowar (turns) 194 | . . 176 18 Structural 194 | . . 176 18 Robot Analysis Total . | . . . . Derelict Logs Recovered . | . . . . Drone Launches . | . . . . Drone Recoveries . | . . . . Exploration | -11 -10 -9 -8 ------------- Run | Yrd Mat Mat Mat Turns Passed 1596 | 53 230 1014 299 Spaces Moved 746 | 53 156 389 148 Core 12 | 1 . 5 6 Treads 216 | . . 74 142 Legs 318 | . 8 310 . Wheels 200 | 52 148 . . Hover . | . . . . Flight . | . . . . Fastest Speed 50 | 50 80 105 160 Average Speed 161 | 79 92 197 170 Slowest Speed 700 | 80 260 700 450 Overloaded Moves . | . . . . Propulsion Burnouts . | . . . . Robots Hopped . | . . . . Potential Cave-ins . | . . . . Cave-ins Triggered . | . . . . Exploration Rate (%) 27 | 3 40 44 23 Regions Visited 3 Branch Regions . Pre-discovered Areas . | . . . . Known Exits Taken . | . . . . Unknown Exits Taken 3 | 1 1 1 . Scrap Searched . | . . . . Spaces Dug . | . . . . Terrain Destroyed 13 | . 10 . 3 Melee . | . . . . Projectile 3 | . . . 3 AOE 10 | . 10 . . Terrain Rammed . | . . . . Walls Destroyed . | . . . . Machines Disabled . | . . . . Actions | -11 -10 -9 -8 --------- Run | Yrd Mat Mat Mat Total 940 | 61 196 505 178 Wait 24 | 2 . 20 2 Move 743 | 52 155 388 148 Hop . | . . . . Pick Up 18 | 2 4 6 6 Fast Attach 20 | 5 4 10 1 Attach 8 | . 1 5 2 Detach . | . . . . Swap 15 | . 3 5 7 Drop 6 | . 2 1 3 Fire 96 | . 24 63 9 Melee . | . . . . Ram 3 | . 3 . . Kick 7 | . . 7 . Crush . | . . . . Escape Stasis . | . . . . Rewire . | . . . . Trap . | . . . . Miscellaneous . | . . . . Route ------- -11/Scrapyard -10/Materials -9/Materials -8/Materials History --------- Turn | Location | Event 35 | -11/Scrapyard | Discovered new exit (range 15) 54 | -11/Scrapyard | Entered Materials 221 | -10/Materials | Discovered new exit (range 13) 270 | -10/Materials | Destroyed 8 combat bots 284 | -10/Materials | Entered another Materials area 284 | -9/Materials | Evolved 2 slots: Power x1, Propulsion x1 311 | -9/Materials | Build established: Mutant 588 | -9/Materials | Lost 5 parts (1p2n2w) 1017 | -9/Materials | Core integrity fell below 50% 1098 | -9/Materials | Build established: Scavenger-Mutant 1135 | -9/Materials | Core integrity fell below 20% 1183 | -9/Materials | Lost 3 parts (1n1u1w) 1292 | -9/Materials | Discovered new exit (range 4) 1298 | -9/Materials | Entered another Materials area 1298 | -8/Materials | Evolved 2 slots: Propulsion x1, Utility x1 1588 | -8/Materials | Core integrity fell below 50% 1596 | -8/Materials | Core integrity fell below 20% 1597 | -8/Materials | Destroyed by G-47 Trooper with Particle Gun Last Messages --------------- R-06 Scavenger collects Lgt. Treads. R-06 Scavenger collects Heat Sink. U-05 Engineer builds a Wall. Penetrated by Slug. R-06 Scavenger collects Lgt. Treads. R-06 Scavenger collects Imp. Ion Engine. Slug penetrates Wall. Critical hit (Burn: +37). Hrd. Medium Armor Plating destroyed. Lgt. Treads destroyed. Critical hit (Burn: +37). Critical hit (Burn: +25). U-05 Engineer builds a Wall. Hvy. Particle Cannon destroyed. Arm. Treads destroyed. Hardlight Generator destroyed. Knocked back. Com. Battery destroyed. U-05 Engineer builds a Wall. S-10 Pest suffers critical hit (Burn). Map ----- +----------------------------------------------------+ | #### #??#"!% % #????????????????????? | | #??########???#!% #????????????????????? | | ### #?????????????# #????????????????????? | | ??# #?????????????#! #????????????????????? | | ??# #?????????????##!% #????????????????????? | | ??# #??????????????###" #????????????????????? | | ??# #????????????????#"% #????????????????????? | | ??# +????????????????## #????????????????????? | | ??# #?????????????????# #????????????????????? | | "?+ #????????????????## #????????????????????? | | "?# #????????????????## %#????#???????????????? | | "?# #????????????????## ##?? #???????????????? | | ??# #????############# ### #######?????????? | | ??# ??? g ????????? | | ??? ???? H ????????? | | ?????????? ^ u% ????????? | | ???????????#########+##" t##########+?????????? | | ????????????????? ## g ;#???????????????????? | | ?????????????#= ?# g##???????????????????? | | ?????????????# ?? ??# g#????????????????????? | | ???????????????""""" ??#sg #????????????????????? | | ????????????????"""" ???# s%#????"#??????????????? | | ????????????????"""" ???# ###"T"######?????????? | | ?????????????????? ????# sk ????????? | | ??????????????????? ????# t ????????? | | ??????????????????#?????#@ s ????????? | | ????????????????????????# """ """ ????????? | | ????????????????????????# """ """?????????????? | | ????????????????????????# """ """?????????????? | | ????????????????????????# ??????????????? | | ????????????????????????# ??????????????? | | ???????????????????????? """?????????????? | | ???????????????????????? "???????????????? | | ???????????????????????? " "" "???????????????? | | ???????????????????????? "R"" ???????????????? | | ???????????????????????? """ ???????????????? | | ????????????????????????####????T"#??????????????? | | ?????????????????????????????????????????????????? | | ?????????????????????????????????????????????????? | | ?????????????????????????????????????????????????? | | ?????????????????????????????????????????????????? | | | | | | | | | | | | | | | | | | | +----------------------------------------------------+ Best States ------------- Heat Dissipation 31 Energy Generation 21 Energy Capacity 525 Matter Stores 300 Matter Capacity 300 Sight Range 16 Terrain Scan Density 10 Armor Coverage 225 Resistance: EM 15 Utility Shielding 66 Evasion (%) 44 Recoil Reduction 3 Item Schematics ----------------- EM Pulse Gun | -9/Materials | Scanalyzed Robot Schematics ------------------ None Fabricated ------------ Nothing Repaired ---------- Nothing Studied --------- Aluminum Leg | -9/Materials | Hacked EM Pulse Gun | -9/Materials | Hacked Alien Tech Used ----------------- None Achievements -------------- None Challenges ------------ None Game ------ Seed LegPhysicsScanner Manual? 0 Play Time 00:26:18 Cumulative 30.4 hours Start 2026.08.14 @ 17:21:04 End 2026.08.15 @ 07:29:41 Sessions 3 Manual Loads 0 Difficulty Rogue Special Mode None Game No. 57 Rogue 57 Adventurer 0 Explorer 0 Win Type - Total 0 Types 0/0/0/0/0/0/0/0/0/0 Lore% 13 Gallery% 22 Achievement% 15 Wizard Run 0 Options --------- Layout 1 ASCII 0 Keyboard 0 Movement Numpad Keybinds 0 Fullscreen 1 Font 32/SmallcapsGlow Map View 50x35 Zoom Use 0% Tactical HUD 0 Map Filters NONE Filters NONE Steam 1 RUN: 443010f1-6f3a-4243-b0cd-247bee2fd2d9